bitfinex/quotes_SOLUSD_20250522
["timestamp","ask_amount","ask_price","bid_price","bid_amount"]
[1747901887924,5.58418934,179.08,179.01,47.90752082]
[1747901888122,21.76535925,179.07,179.02,33.48]
[1747901888321,5.58418934,179.08,179.02,33.48]
[1747901888509,21.76535925,179.06,179.02,33.48]
[1747901888712,5.58418934,179.08,179.02,33.48]
[1747901889022,21.76535925,179.07,179.02,55.24535925]
[1747901889226,27.34987594,179.07,179.02,33.48]
[1747901889420,1.6577,179.11,179.02,33.48]
[1747901889609,21.76535925,179.08,179.02,55.24535925]
[1747901889930,5.58347292,179.1,179.02,33.48]
[1747901890131,5.58347292,179.1,179.02,47.31298534]
[1747901890628,13.83298534,179.07,179.02,33.48]
[1747901890797,5.58347292,179.1,179.02,33.48]
[1747901890998,13.83298534,179.08,179.03,13.83298534]
[1747901891195,5.58347292,179.1,179.03,13.83298534]
[1747901891437,13.83298534,179.09,179.02,33.48]
[1747901891732,13.83298534,179.07,179.02,47.31298534]
[1747901892024,13.83298534,179.07,179.02,33.48]
[1747901892221,19.54215522,179.1,179.02,33.48]
[1747901892414,13.83298534,179.07,179.02,73.31298534]
[1747901892827,13.83298534,179.07,179.02,59.48]
[1747901892997,19.54215522,179.1,179.02,59.48]
[1747901892998,18.64964886,179.09,179.02,59.48]
[1747901893309,19.54433772,179.08,178.99,13.83298534]
[1747901893496,13.83298534,179.05,179.01,33.48]
[1747901893697,18.64964886,179.07,178.97,0.14216157]
[1747901893916,5.58409649,179.08,179.01,13.83298534]
[1747901894114,13.83298534,179.07,178.99,0.14216157]
[1747901894345,5.58409649,179.08,179.04,26.0]
[1747901894545,5.58409649,179.08,179.04,39.83298534]
[1747901895005,5.58409649,179.08,179.04,26.0]
[1747901895330,5.58378299,179.1,179.06,39.83298534]
[1747901895507,5.58378299,179.1,179.06,26.0]
[1747901895711,19.41676833,179.1,179.06,26.0]
[1747901895928,13.83298534,179.12,179.06,39.83298534]
[1747901896306,19.41552316,179.13,179.07,13.83298534]
[1747901896532,13.83298534,179.13,179.11,26.0]
[1747901896719,8.81023987,179.14,179.11,26.0]
[1747901897124,14.39247687,179.14,179.11,26.0]
[1747901898503,36.17315065,179.14,179.11,26.0]
[1747901899330,14.39247687,179.14,179.09,26.0]
[1747901899637,21.78067378,179.1,179.01,0.14216157]
[1747901899929,21.78067378,179.09,179.04,0.14216157]
[1747901900109,8.2835,179.13,179.07,26.0]
[1747901900310,21.78067378,179.1,179.07,26.0]
[1747901900809,8.2835,179.13,179.07,26.0]
[1747901900810,5.58284948,179.12,179.07,26.0]
[1747901901008,21.78067378,179.1,179.07,26.0]
[1747901901218,21.78067378,179.08,179.07,26.0]
[1747901901434,21.78067378,179.08,179.05,26.0]
[1747901902036,21.78067378,179.08,179.04,33.48]
[1747901902740,21.78067378,179.07,179.04,33.48]
[1747901903033,27.36539398,179.06,178.96,6.5937]
[1747901903239,21.78067378,179.02,178.98,0.14216157]
[1747901903442,5.5847202,179.06,178.99,33.48]
[1747901903740,21.78067378,179.03,178.99,59.48]
[1747901903914,21.78067378,179.04,178.99,55.26067378]
[1747901904115,21.78067378,179.04,178.99,59.48]
[1747901904345,5.58596804,179.02,179.01,26.0]
[1747901905942,5.58596804,179.02,179.0,33.48]
[1747901906347,5.58409649,179.08,179.0,55.26067378]
[1747901906523,5.58409649,179.08,179.03,47.78067378]
[1747901906723,5.58409649,179.08,179.04,21.78067378]
[1747901906928,27.36477027,179.08,179.05,33.5]
[1747901907135,21.78067378,179.06,179.05,33.5]
[1747901907337,19.54433772,179.08,179.02,59.5]
[1747901907543,21.78067378,179.04,179.02,59.5]
[1747901907724,21.78067378,179.04,179.01,26.0]
[1747901907923,21.78067378,179.04,179.01,59.5]
[1747901908149,21.78067378,179.02,178.95,0.14216157]
[1747901908445,21.78067378,179.0,178.97,26.0]
[1747901908650,21.78067378,179.01,178.97,26.0]
[1747901909023,19.54979611,179.03,178.97,26.0]
[1747901909219,21.78067378,179.01,178.97,26.0]
[1747901910528,5.58659217,179.0,178.97,26.0]
[1747901911637,27.36726595,179.0,178.94,11.71437077]
[1747901911835,21.78067378,178.99,178.95,33.5]
[1747901912147,5.58659217,179.0,178.94,11.71437077]
[1747901912326,21.78067378,178.99,178.95,33.5]
[1747901912526,5.58712761,178.99,178.95,33.5]
[1747901912830,27.36780139,178.99,178.95,33.5]
[1747901913026,5.58712761,178.99,178.95,55.28067378]
[1747901913227,21.78067378,179.01,178.96,21.78067378]
[1747901914029,5.58596804,179.02,178.97,21.78067378]
[1747901914225,27.36664182,179.02,178.97,21.78067378]
[1747901914431,5.58596804,179.02,178.98,47.78067378]
[1747901915025,27.36664182,179.02,178.98,26.0]
[1747901915233,21.78067378,179.07,179.02,26.0]
[1747901915449,8.81023987,179.14,179.06,47.78067378]
[1747901915652,8.81023987,179.14,179.09,47.78067378]
[1747901915653,14.3925411,179.14,179.09,47.78067378]
[1747901915828,8.81023987,179.14,179.1,55.28067378]
[1747901916028,8.81023987,179.14,179.13,26.0]
[1747901917048,8.81023987,179.14,179.11,26.0]
[1747901917242,8.81023987,179.14,179.11,47.78067378]
[1747901917441,8.81023987,179.14,179.12,21.78067378]
[1747901918238,8.81023987,179.14,179.13,26.0]
[1747901919646,8.81023987,179.14,179.13,47.78067378]
[1747901919952,8.81023987,179.14,179.13,47.92283535]
[1747901920351,8.81023987,179.14,179.13,26.0]
[1747901920754,8.81023987,179.14,179.13,47.92283535]
[1747901921065,8.81023987,179.14,179.13,26.14216157]
[1747901921363,8.81023987,179.14,179.13,47.92283535]
[1747901921768,8.81023987,179.14,179.13,53.50537317]
[1747901923558,8.81023987,179.14,179.13,56.60405005]
[1747901924145,8.81023987,179.14,179.13,75.25369891]
[1747901924348,8.81023987,179.14,179.13,189.97155814]
[1747901924648,8.81023987,179.14,179.13,189.41369891]
[1747901924847,8.81023987,179.14,179.13,218.82197269]
[1747901925049,0.28602,179.19,179.13,232.77831724]
[1747901925251,0.28602,179.19,179.18,47.92283535]
[1747901925446,0.28602,179.19,179.18,81.40283535]
[1747901925946,0.28602,179.19,179.18,100.61027056]
[1747901926357,0.28602,179.19,179.18,78.82959678]
[1747901926556,0.28602,179.19,179.18,81.40283535]
[1747901927243,0.28602,179.19,179.18,59.48]
[1747901927567,0.28602,179.19,179.18,81.40283535]
[1747901927946,0.28602,179.19,179.18,59.48]
[1747901928245,5.86668856,179.19,179.18,59.48]
[1747901928467,0.28602,179.19,179.18,59.48]
[1747901928641,27.64736234,179.19,179.13,23.39687378]
[1747901928842,21.78067378,179.18,179.14,33.48]
[1747901929061,21.78067378,179.18,179.15,33.48]
[1747901929248,21.78067378,179.16,179.14,33.48]
[1747901929446,21.78067378,179.15,179.1,0.14216157]
[1747901929647,5.58129151,179.17,179.11,33.48]
[1747901929847,21.78067378,179.15,179.11,33.48]
[1747901930369,21.78067378,179.16,179.11,55.26067378]
[1747901930870,27.36196529,179.17,179.14,26.0]
[1747901931465,5.58106154,179.18,179.16,26.0]
[1747901931955,5.58106154,179.18,179.14,26.0]
[1747901932152,5.58106154,179.18,179.16,26.0]
[1747901932366,27.36173532,179.18,179.16,26.0]
[1747901932750,27.36173532,179.18,179.08,1.5231]
[1747901932751,21.78067378,179.17,179.14,26.0]
[1747901933060,21.78067378,179.15,179.13,33.48]
[1747901933260,27.36289997,179.14,179.05,21.92283535]
[1747901933471,21.78067378,179.07,179.04,33.48]
[1747901933766,1.6027,179.12,179.04,33.48]
[1747901933949,21.78067378,179.09,179.04,33.48]
[1747901934147,21.78067378,179.08,179.07,26.0]
[1747901934348,21.78067378,179.08,179.04,33.48]
[1747901934541,1.6027,179.12,179.04,55.26067378]
[1747901934744,21.78067378,179.09,179.04,33.48]
[1747901934967,1.6027,179.12,179.04,33.48]
[1747901935169,5.58409649,179.08,179.05,26.0]
[1747901935342,5.58409649,179.08,179.04,33.48]
[1747901935547,27.36477027,179.08,179.04,33.48]
[1747901935748,27.36477027,179.08,179.05,26.0]
[1747901935964,5.58316118,179.11,179.05,47.78067378]
[1747901936164,21.78067378,179.1,179.05,26.0]
[1747901936473,21.78067378,179.1,179.05,47.78067378]
[1747901936767,21.78067378,179.08,179.06,26.0]
[1747901936975,19.54106414,179.11,179.06,26.0]
[1747901936976,21.78067378,179.07,179.06,26.0]
[1747901937153,19.54106414,179.11,179.06,26.0]
[1747901937356,27.36508211,179.07,179.06,26.0]
[1747901937559,27.36508211,179.07,179.02,208.98]
[1747901937874,27.36508211,179.07,179.03,33.48]
[1747901938250,5.58440833,179.07,179.03,33.48]
[1747901938453,27.36508211,179.07,179.03,33.48]
[1747901938957,21.78067378,179.06,179.03,33.48]
[1747901939272,21.78067378,179.05,179.03,33.48]
[1747901939444,18.64964886,179.1,179.03,33.48]
[1747901939650,21.78067378,179.06,179.02,33.48]
[1747901939846,21.78067378,179.05,179.01,33.48]
[1747901940270,21.78067378,179.02,178.95,0.14216157]
[1747901940467,18.64964886,179.1,178.93,84.6969]
[1747901940468,21.78067378,179.0,178.96,33.48]
[1747901940767,18.64964886,179.07,178.96,55.26067378]
[1747901940768,21.78067378,179.02,178.96,55.26067378]
[1747901940983,21.78067378,179.0,178.96,33.48]
[1747901941389,21.78067378,179.01,178.96,33.48]
[1747901941684,5.58565603,179.03,178.97,0.14216157]
[1747901941846,7.7357,179.1,179.02,21.78067378]
[1747901942164,21.78067378,179.07,179.02,55.26067378]
[1747901942471,7.7357,179.1,179.03,21.78067378]
[1747901942770,21.78067378,179.08,179.03,21.78067378]
[1747901942945,21.78067378,179.07,179.02,33.48]
[1747901943379,5.58409649,179.08,179.03,21.78067378]
[1747901943588,27.36477027,179.08,179.02,33.48]
[1747901943765,21.78067378,179.07,179.02,55.26067378]
[1747901944571,19.54433772,179.08,179.03,21.78067378]
[1747901944873,41.3250115,179.08,179.03,21.78067378]
[1747901945056,5.58409649,179.08,179.04,21.78067378]
[1747901945570,5.58409649,179.08,179.03,21.78067378]
[1747901945976,5.58409649,179.08,179.04,21.78067378]
[1747901946363,5.58409649,179.08,179.02,33.48]
[1747901946364,19.9636714,179.14,179.06,21.78067378]
[1747901946558,21.78067378,179.13,179.07,55.26067378]
[1747901946769,21.78067378,179.12,179.07,55.26067378]
[1747901946982,5.58316118,179.11,179.07,55.26067378]
[1747901947159,5.58290699,179.12,179.08,21.78067378]
[1747901948880,5.58160303,179.16,179.09,21.78067378]
[1747901949086,5.58098002,179.18,179.11,21.78067378]
[1747901949258,21.78067378,179.16,179.12,33.48]
[1747901949671,21.78067378,179.15,179.09,21.78067378]
[1747901949862,21.78067378,179.15,179.1,33.48]
[1747901950060,19.53343007,179.18,179.11,21.78067378]
[1747901950384,19.53343007,179.18,179.13,21.78067378]
[1747901950385,5.58098002,179.18,179.13,21.78067378]
[1747901950681,5.58098002,179.18,179.14,21.78067378]
[1747901950871,5.58098002,179.18,179.11,0.14216157]
[1747901951073,5.86673249,179.19,179.15,21.78067378]
[1747901951381,5.86673249,179.19,179.16,33.48]
[1747901951583,5.86673249,179.19,179.16,55.26067378]
[1747901952173,0.28602,179.19,179.17,21.78067378]
[1747901952679,0.28602,179.19,179.18,21.78067378]
[1747901954161,0.28602,179.19,179.18,27.50381537]
[1747901954876,0.28602,179.19,179.16,33.48]
[1747901955083,0.28602,179.19,179.18,21.78067378]
[1747901955586,0.28602,179.19,179.17,0.14216157]
[1747901955877,0.28602,179.19,179.18,21.78067378]
[1747901956093,0.28602,179.19,179.13,74.52]
[1747901956262,5.86684975,179.19,179.14,33.48]
[1747901956465,27.64752353,179.19,179.14,33.48]
[1747901956678,27.64752353,179.19,179.13,74.52]
[1747901956879,27.64752353,179.19,179.13,129.78067378]
[1747901957186,21.78067378,179.17,179.13,108.0]
[1747901957567,5.86684975,179.19,179.15,21.78067378]
[1747901957961,5.86684975,179.19,179.13,33.48]
[1747901958161,5.86684975,179.19,179.14,21.78067378]
[1747901958784,5.86684975,179.19,179.14,0.14216157]
[1747901958986,5.86684975,179.19,179.13,33.48]
[1747901959170,27.64752353,179.19,179.13,33.48]
[1747901959363,5.86684975,179.19,179.15,21.78067378]
[1747901960070,5.86684975,179.19,179.14,21.78067378]
[1747901960273,21.78067378,179.18,179.13,33.48]
[1747901961190,27.64752353,179.19,179.13,55.26067378]
[1747901961491,27.64752353,179.19,179.18,21.92283535]
[1747901961492,0.28602,179.19,179.18,21.92283535]
[1747901961661,0.28602,179.19,179.18,55.26067378]
[1747901961865,0.28602,179.19,179.18,33.48]
[1747901962881,0.28602,179.19,179.18,55.26067378]
[1747901963984,0.28602,179.19,179.18,33.48]
[1747901965286,0.28602,179.19,179.18,60.8416538]
[1747901965489,0.28602,179.19,179.18,39.06098002]
[1747901965795,0.28602,179.19,179.18,55.26067378]
[1747901966086,0.28602,179.19,179.18,60.8416538]
[1747901966292,0.28602,179.19,179.18,39.20314159]
[1747901966794,0.28602,179.19,179.18,33.46]
[1747901968779,0.28602,179.19,179.14,5.5821683]
[1747901969087,0.28602,179.19,179.17,33.46]
[1747901970280,0.28602,179.19,179.17,39.04113801]
[1747901970670,0.28602,179.19,179.17,33.46]
[1747901972092,0.28602,179.19,179.16,33.46]
[1747901973266,27.62764678,179.19,179.12,72.42]
[1747901973595,21.76094941,179.18,179.15,33.46]
[1747901973793,27.62764678,179.19,179.15,33.46]
[1747901973997,0.28602,179.19,179.15,33.46]
[1747901974376,0.28602,179.19,179.15,39.04183269]
[1747901974901,0.28602,179.19,179.15,33.46]
[1747901975189,0.28602,179.19,179.15,122.04188101]
[1747901975698,0.28602,179.19,179.15,116.46]
[1747901975881,27.62769535,179.19,179.15,33.46]
[1747901976090,21.76094941,179.18,179.13,33.46]
[1747901976474,5.58129151,179.17,179.13,33.46]
[1747901977209,27.34224092,179.17,179.13,33.46]
[1747901977501,27.34224092,179.17,179.07,85.74847812]
[1747901977502,27.34224092,179.17,179.12,33.46]
[1747901978805,21.76094941,179.16,179.08,5.72596587]
[1747901978989,21.76094941,179.16,179.09,33.46]
[1747901979194,5.58129151,179.17,179.09,36.55629516]
[1747901979881,1.6155,179.18,179.1,0.14216157]
[1747901980097,0.28602,179.19,179.1,0.14216157]
[1747901980292,5.86677532,179.19,179.1,0.14216157]
[1747901980497,0.28602,179.19,179.1,0.14216157]
[1747901980680,0.28602,179.19,179.13,0.14216157]
[1747901980885,0.28602,179.19,179.14,33.48]
[1747901981179,0.28602,179.19,179.15,0.14216157]
[1747901982082,0.28602,179.19,179.15,5.7239269]
[1747901985114,0.28602,179.19,179.15,7.3216269]
[1747901986105,0.28602,179.19,179.15,5.7239269]
[1747901986311,0.28602,179.19,179.16,33.46]
[1747901986499,5.86670411,179.19,179.16,33.46]
[1747901987005,0.28602,179.19,179.16,33.46]
[1747901987427,5.86679053,179.19,179.15,33.46]
[1747901988098,0.28602,179.19,179.15,33.46]
[1747901988917,27.62765771,179.19,179.15,33.46]
[1747901989112,0.28602,179.19,179.15,33.46]
[1747901989409,5.86676527,179.19,179.15,33.46]
[1747901989611,0.28602,179.19,179.15,33.46]
[1747901990612,0.28602,179.19,179.16,3.11401166]
[1747901991617,0.28602,179.19,179.17,3.11401166]
[1747901992403,0.28602,179.19,179.16,3.11401166]
[1747901992597,0.28602,179.19,179.17,1.6129]
[1747901992799,0.28602,179.19,179.18,0.14216157]
[1747901993621,18.64964886,179.31,179.19,26.0]
[1747901993622,18.64964886,179.29,179.19,26.0]
[1747901993923,7.118163,179.32,179.2,0.14216157]
[1747901994122,1.5415,179.32,179.22,26.14216157]
[1747901994424,7.11817166,179.32,179.23,5.57942308]
[1747901994811,21.76094941,179.31,179.23,5.57942308]
[1747901995109,7.11817166,179.32,179.24,3.11401166]
[1747901995598,2.08191122,179.31,179.24,3.11401166]
[1747901995805,21.76094941,179.29,179.23,33.46]
[1747901996308,5.57777586,179.29,179.23,33.46]
[1747901996931,5.5769338,179.31,179.23,39.03938181]
[1747901997297,21.76094941,179.28,179.23,33.46]
[1747901997498,18.64964886,179.3,179.17,27.6129]
[1747901997719,21.76094941,179.23,179.2,33.46]
[1747901997922,18.64964886,179.28,179.2,33.46]
[1747901998111,21.76094941,179.24,179.2,33.46]
[1747901998302,18.64964886,179.28,179.2,33.46]
[1747901998303,21.76094941,179.23,179.2,33.46]
[1747901998735,5.57848934,179.26,179.2,33.46]
[1747901999135,21.76094941,179.25,179.2,33.46]
[1747901999606,5.57848934,179.26,179.2,33.46]
[1747901999806,27.33943875,179.26,179.2,33.46]
[1747902000029,5.57848934,179.26,179.2,33.46]
[1747902000229,21.76094941,179.25,179.2,33.46]
[1747902000433,27.33992597,179.25,179.2,33.46]
[1747902000607,21.76094941,179.26,179.2,33.46]
[1747902000812,21.76094941,179.25,179.2,33.46]
[1747902001117,21.76094941,179.23,179.2,33.46]
[1747902001321,21.76094941,179.23,179.17,33.46]
[1747902001509,18.64964886,179.32,179.2,0.14216157]
[1747902001709,21.76094941,179.3,179.21,26.0]
[1747902001916,21.76094941,179.28,179.22,3.11238878]
[1747902002123,21.76094941,179.28,179.23,33.46]
[1747902002332,21.76094941,179.31,179.24,5.5791118]
[1747902002712,21.76094941,179.3,179.24,5.5791118]
[1747902003031,21.76094941,179.29,179.23,33.46]
[1747902003234,21.76094941,179.28,179.24,3.11238878]
[1747902003430,21.76094941,179.27,179.24,3.11238878]
[1747902003631,39.78544024,179.33,179.24,3.11238878]
[1747902003945,21.76094941,179.27,179.24,3.11238878]
[1747902004233,21.76094941,179.27,179.23,33.46]
[1747902004654,18.64964886,179.31,179.23,33.46]
[1747902004940,21.76094941,179.27,179.23,33.46]
[1747902005233,21.76094941,179.25,179.22,33.46]
[1747902005438,21.76094941,179.24,179.21,33.46]
[1747902005646,21.76094941,179.25,179.21,33.46]
[1747902005820,18.64964886,179.31,179.21,33.46]
[1747902006141,21.76094941,179.25,179.21,33.46]
[1747902006324,27.33997287,179.25,179.21,33.46]
[1747902006527,5.57843963,179.27,179.21,33.46]
[1747902007016,21.76094941,179.26,179.21,33.46]
[1747902007517,21.76094941,179.25,179.21,33.46]
[1747902007714,5.57843963,179.27,179.21,33.46]
[1747902008329,5.58004575,179.21,179.15,83.32185257]
[1747902008530,21.76094941,179.19,179.16,33.46]
[1747902008731,5.58004575,179.21,179.16,33.46]
[1747902008937,5.5791118,179.24,179.16,33.46]
[1747902009125,21.76094941,179.23,179.16,33.46]
[1747902009323,5.5791118,179.24,179.16,33.46]
[1747902009535,21.76094941,179.21,179.16,33.46]
[1747902009725,21.76094941,179.2,179.17,3.11328764]
[1747902009933,19.52689131,179.24,179.17,3.11328764]
[1747902010116,21.76094941,179.2,179.17,3.11328764]
[1747902010550,5.58066856,179.19,179.17,3.11328764]
[1747902010754,27.34161797,179.19,179.17,3.11328764]
[1747902010918,21.76094941,179.18,179.15,111.2]
[1747902011247,27.34161797,179.19,179.15,111.2]
[1747902011456,21.76094941,179.18,179.15,111.2]
[1747902011622,5.58066856,179.19,179.15,111.2]
[1747902011930,5.58066856,179.19,179.15,33.46]
[1747902012132,19.53233997,179.19,179.15,33.46]
[1747902012351,19.53233997,179.19,179.1,27.522]
[1747902012642,21.76094941,179.19,179.11,33.46]
[1747902012936,5.58004575,179.21,179.11,33.46]
[1747902012937,21.76094941,179.18,179.11,40.99855012]
[1747902013142,21.76094941,179.16,179.11,7.53855012]
[1747902013446,21.76094941,179.14,179.1,33.46]
[1747902013844,1.6042,179.17,179.1,33.46]
[1747902014039,21.76094941,179.11,179.08,33.46]
[1747902014235,21.76094941,179.1,179.08,33.46]
[1747902014442,27.34442233,179.1,179.09,3.11250096]
[1747902014749,5.58347292,179.1,179.09,3.11250096]
[1747902015525,27.34442233,179.1,179.09,3.11250096]
[1747902015733,41.30310463,179.1,179.01,33.46]
[1747902015929,21.76094941,179.04,179.01,33.46]
[1747902016246,21.76094941,179.03,179.01,33.46]
[1747902016433,5.58596804,179.02,179.0,7.73344212]
[1747902016838,21.76094941,179.01,179.0,7.73344212]
[1747902017523,5.58596804,179.02,178.99,3.11335747]
[1747902017923,21.76094941,179.0,178.99,3.11335747]
[1747902018447,26.0,179.08,178.95,36.34178991]
[1747902018448,38.19507801,179.07,178.95,36.34178991]
[1747902018752,21.76094941,179.03,178.95,36.34178991]
[1747902018929,21.76094941,179.03,178.95,41.92993121]
[1747902019125,21.76094941,179.02,178.95,36.34178991]
[1747902019664,21.76094941,179.03,178.95,41.92991996]
[1747902019832,21.76094941,179.03,178.95,36.34178991]
[1747902020522,5.58440833,179.07,178.96,0.14216157]
[1747902020727,21.76094941,179.06,178.96,0.14216157]
[1747902020923,5.58440833,179.07,178.98,0.14216157]
[1747902021152,1.5395,179.09,178.98,0.14216157]
[1747902021357,1.5804,179.13,179.01,0.14216157]
[1747902021534,1.5804,179.13,179.03,0.14216157]
[1747902021739,27.34379889,179.12,179.03,0.14216157]
[1747902022051,5.58256422,179.13,179.03,0.14216157]
[1747902022240,27.34351363,179.13,179.03,0.14216157]
[1747902022860,27.34351363,179.13,179.03,5.72781717]
[1747902022861,21.76094941,179.12,179.03,5.72781717]
[1747902023062,27.34351363,179.13,179.03,5.72781717]
[1747902023230,5.58256422,179.13,179.03,5.72781717]
[1747902023434,27.34351363,179.13,179.03,5.72781717]
[1747902023638,5.58256422,179.13,179.03,5.72781717]
[1747902023850,21.76094941,179.12,179.03,5.72781717]
[1747902024245,5.58316118,179.11,179.03,5.72781717]
[1747902024569,5.58191459,179.15,179.03,5.72781717]
[1747902024727,21.76094941,179.14,179.03,5.72781717]
[1747902025057,5.58191459,179.15,179.03,5.72781717]
[1747902025267,5.58191459,179.15,179.06,26.0]
[1747902025836,27.342864,179.15,179.06,26.0]
[1747902026135,27.34325587,179.14,179.07,5.58440833]
[1747902026546,5.58230646,179.14,179.07,5.58440833]
[1747902026839,21.76094941,179.15,179.07,5.58440833]
[1747902026840,27.34288197,179.15,179.08,33.48]
[1747902027552,5.58193256,179.15,179.08,33.48]
[1747902027865,21.76094941,179.14,179.04,26.0]
[1747902028067,21.76094941,179.14,179.09,33.48]
[1747902028235,5.58284948,179.12,179.04,31.58506785]
[1747902028440,5.58284948,179.12,179.09,33.48]
[1747902028638,5.58191459,179.15,179.09,33.48]
[1747902028857,27.342864,179.15,179.09,33.48]
[1747902029029,5.58191459,179.15,179.09,33.48]
[1747902029233,27.342864,179.15,179.09,33.48]
[1747902030140,5.58191459,179.15,179.09,33.48]
[1747902030555,27.342864,179.15,179.09,33.48]
[1747902031656,27.342864,179.15,179.09,39.06376967]
[1747902031847,21.76094941,179.16,179.09,39.06376967]
[1747902032045,21.76094941,179.17,179.09,39.06376967]
[1747902032260,5.58066856,179.19,179.09,128.10456967]
[1747902032436,27.34161797,179.19,179.09,128.10456967]
[1747902032762,21.76094941,179.17,179.09,5.58376967]
[1747902033067,5.58066856,179.19,179.1,33.48]
[1747902033068,21.76094941,179.13,179.1,33.48]
[1747902033278,21.76094941,179.14,179.1,33.48]
[1747902033575,19.53233997,179.19,179.1,33.48]
[1747902034238,21.76094941,179.17,179.1,39.06328004]
[1747902034644,21.76094941,179.18,179.1,39.06328004]
[1747902034866,5.58066856,179.19,179.1,33.48]
[1747902035162,21.76094941,179.17,179.1,33.48]
[1747902035358,21.76094941,179.16,179.08,5.58403329]
[1747902035566,21.76094941,179.15,179.09,33.48]
[1747902035943,21.76094941,179.13,179.05,6.0408]
[1747902036137,21.76094941,179.13,179.03,160.2849]
[1747902036138,21.76094941,179.12,179.03,1.5249]
[1747902036353,21.76094941,179.1,179.04,33.48]
[1747902036871,21.76094941,179.11,179.04,33.48]
[1747902037244,27.3431756,179.14,179.05,0.14216157]
[1747902037440,5.58160303,179.16,179.05,0.14216157]
[1747902037643,21.76094941,179.15,179.05,0.14216157]
[1747902037849,27.3428736,179.15,179.06,5.5847202]
[1747902038056,5.58192419,179.15,179.06,5.5847202]
[1747902038665,21.76094941,179.16,179.06,31.5847202]
[1747902038969,19.53233997,179.19,179.07,0.14216157]
[1747902039139,21.76094941,179.16,179.07,0.14216157]
[1747902039541,27.34273769,179.16,179.08,5.58409649]
[1747902039946,27.34273769,179.16,179.09,26.0]
[1747902040146,5.58120847,179.18,179.1,33.48]
[1747902040547,27.34215788,179.18,179.1,33.48]
[1747902040953,21.76094941,179.16,179.1,33.48]
[1747902041155,21.76094941,179.13,179.11,33.48]
[1747902041444,21.76094941,179.13,179.09,26.0]
[1747902041658,27.34376934,179.13,179.09,26.0]
[1747902042346,27.34376934,179.13,179.08,33.48]
[1747902042347,5.58281993,179.13,179.08,33.48]
[1747902045059,21.76094941,179.12,179.07,26.0]
[1747902045362,21.76094941,179.1,179.0,73.86216157]
[1747902045545,27.3450459,179.08,179.0,79.30659217]
[1747902045870,27.3450459,179.08,179.02,26.0]
[1747902046171,7.7815,179.12,179.02,26.0]
[1747902046172,27.34474502,179.09,179.02,26.0]
[1747902046555,5.58379561,179.09,179.01,33.48]
[1747902046883,27.34474502,179.09,179.02,26.0]
[1747902047554,21.76094941,179.09,179.02,26.0]
[1747902047968,21.76094941,179.09,179.03,26.0]
[1747902048144,21.76094941,179.07,179.03,33.48]
[1747902048662,21.76094941,179.06,179.02,26.0]
[1747902049065,5.58378468,179.09,179.02,26.0]
[1747902049569,19.5432464,179.09,179.02,26.0]
[1747902049952,19.5432464,179.09,178.98,1.5187]
[1747902049953,21.76094941,179.05,178.98,26.0]
[1747902050168,19.5432464,179.09,178.99,33.48]
[1747902050352,21.76094941,179.05,178.99,33.48]
[1747902050539,19.5432464,179.09,178.99,33.48]
[1747902051142,13.95946172,179.09,178.99,33.48]
[1747902051342,21.76094941,179.05,178.99,33.48]
[1747902051940,13.95946172,179.09,178.98,26.0]
[1747902052144,21.76094941,179.05,178.99,33.48]
[1747902053154,5.58534405,179.04,178.99,33.48]
[1747902053944,5.58534405,179.04,178.98,26.0]
[1747902054168,5.58534405,179.04,178.99,33.5]
[1747902054544,5.58534405,179.04,179.02,26.0]
[1747902054779,18.64964886,179.08,179.02,26.0]
[1747902054780,19.42308759,179.06,179.02,26.0]
[1747902055286,5.58440833,179.07,179.02,26.0]
[1747902055943,13.83836739,179.05,179.0,33.5]
[1747902056141,13.83836739,179.05,179.01,26.0]
[1747902056744,13.83836739,179.04,179.01,26.0]
[1747902056952,5.58523026,179.05,179.01,26.0]
[1747902058467,5.58480395,179.06,179.01,26.0]
[1747902058872,19.42317134,179.06,179.01,26.0]
[1747902059256,13.83836739,179.06,179.01,26.0]
[1747902059479,18.64964886,179.08,179.01,26.0]
[1747902059665,19.54363023,179.09,179.01,31.58626991]
[1747902059865,5.58316118,179.11,179.04,26.0]